bitfinex/quotes_SOLUSD_20260108
["timestamp","ask_amount","ask_price","bid_price","bid_amount"]
[1767875583162,3.55952958,134.09,134.06,0.2]
[1767875583454,0.28432314,134.1,134.06,0.2]
[1767875583639,0.67351475,134.08,134.06,0.2]
[1767875584041,11.01731869,134.09,134.06,0.899641]
[1767875584042,0.67351475,134.09,134.06,0.899641]
[1767875584234,0.67006093,134.09,134.06,0.899641]
[1767875585542,8.12778343,134.09,134.06,0.899641]
[1767875585861,11.68731301,134.09,134.06,0.899641]
[1767875586059,0.33155248,134.08,134.06,0.2]
[1767875586260,0.46867585,134.07,134.03,0.899641]
[1767875586560,4.02820543,134.07,134.03,0.899641]
[1767875586942,13.90432314,134.08,134.03,0.2]
[1767875586943,3.69445329,134.06,134.03,0.2]
[1767875587349,4.02486791,134.05,134.03,0.2]
[1767875587549,4.02486791,134.05,133.99,24.64262381]
[1767875587550,3.55952958,134.04,133.99,8.16273523]
[1767875587751,11.02019648,134.04,133.99,0.699641]
[1767875587952,3.55952958,134.04,134.0,0.699641]
[1767875588464,11.11902456,134.04,134.0,0.699641]
[1767875589751,13.62,134.05,134.01,0.699641]
[1767875590060,13.62,134.05,133.96,20.3001107]
[1767875590061,0.10103903,134.03,133.99,0.699641]
[1767875590244,3.55952958,134.02,133.99,0.699641]
[1767875590646,0.58928557,134.04,134.0,0.699641]
[1767875591167,4.14881515,134.04,134.0,0.699641]
[1767875591959,11.60939345,134.04,134.0,0.699641]
[1767875593368,11.32507031,134.04,134.0,0.699641]
[1767875593954,11.32512688,134.04,134.0,0.699641]
[1767875596465,7.46063487,134.04,134.0,0.699641]
[1767875596767,11.02016445,134.04,134.0,0.699641]
[1767875596960,3.86449201,134.06,134.01,0.699641]
[1767875597276,17.48449201,134.06,134.01,0.699641]
[1767875597753,103.0,134.09,134.0,11.02218447]
[1767875597754,106.65852958,134.09,134.04,0.699641]
[1767875597955,0.3029028,134.08,134.04,0.699641]
[1767875598467,3.86243238,134.08,134.04,0.699641]
[1767875599171,11.32106355,134.08,134.04,0.699641]
[1767875599867,3.94489175,134.07,134.03,0.699641]
[1767875600159,3.55952958,134.06,134.03,0.699641]
[1767875600757,17.28056861,134.07,134.03,0.699641]
[1767875601056,0.30088416,134.06,134.03,0.699641]
[1767875601270,4.14473688,134.06,134.02,0.699641]
[1767875601444,0.10303748,134.05,134.02,0.699641]
[1767875602978,0.28432314,134.06,134.02,0.699641]
[1767875603183,0.099,134.05,134.02,3.55952958]
[1767875603483,0.099,134.05,134.01,4.25917058]
[1767875603658,0.099,134.05,134.02,0.699641]
[1767875604188,11.60823007,134.06,134.02,0.699641]
[1767875604582,0.099,134.05,133.99,0.699641]
[1767875604883,0.30496243,134.05,134.0,0.699641]
[1767875605083,17.48449201,134.05,134.0,0.699641]
[1767875605397,24.94475835,134.05,134.01,0.699641]
[1767875606089,3.55952958,134.04,134.01,0.699641]
[1767875606268,3.65852958,134.04,134.01,0.699641]
[1767875606470,3.65852958,134.04,134.0,0.699641]
[1767875606983,30.0,134.03,134.0,0.699641]
[1767875608183,30.3029028,134.03,133.99,0.699641]
[1767875608370,7.76404079,134.03,133.99,0.699641]
[1767875608683,26.41658126,134.03,133.99,0.699641]
[1767875609070,29.97611084,134.03,133.99,0.699641]
[1767875609387,0.10103903,134.02,133.99,0.699641]
[1767875611295,0.28432314,134.02,133.97,0.699641]
[1767875611592,13.62,134.01,133.98,0.699641]
[1767875612284,0.099,134.02,133.98,0.699641]
[1767875612285,21.46519409,134.02,133.98,0.699641]
[1767875612582,21.08187095,134.02,133.98,0.699641]
[1767875612783,7.46187095,134.02,133.98,0.699641]
[1767875613179,21.38647604,134.03,134.0,0.70212391]
[1767875613689,21.08151361,134.03,134.0,0.70212391]
[1767875615472,24.94394599,134.03,133.99,0.70212391]
[1767875617508,21.38441641,134.03,133.99,0.70212391]
[1767875617691,24.94394599,134.03,133.99,0.70212391]
[1767875618397,0.30088416,134.01,133.97,0.70212391]
[1767875618578,3.86041374,134.01,133.97,0.70212391]
[1767875618773,0.30088416,134.01,133.97,0.70212391]
[1767875618973,13.92088416,134.01,133.97,0.70212391]
[1767875619497,21.38334965,134.01,133.97,0.70212391]
[1767875621999,21.38334965,134.01,133.97,4.26165349]
[1767875622690,21.08246549,134.01,133.98,0.70212391]
[1767875623195,21.08246549,134.01,133.99,0.70212391]
[1767875623196,7.46246549,134.01,133.99,0.70212391]
[1767875623395,21.36614883,134.02,133.99,0.70212391]
[1767875623781,21.08182569,134.02,133.99,0.70212391]
[1767875624096,7.46182569,134.02,133.99,0.70212391]
[1767875625294,21.32244874,134.03,133.99,0.70212391]
[1767875625786,21.32244874,134.03,133.96,18.66175136]
[1767875625787,9.32210483,134.02,133.97,0.70212391]
[1767875625986,3.94285272,134.02,133.97,0.70212391]
[1767875626294,3.94285272,134.02,133.98,0.70212391]
[1767875626498,5.68590838,134.01,133.95,7.46507426]
[1767875626801,5.68590838,134.01,133.94,18.76449784]
[1767875626802,5.38307691,134.0,133.97,0.70212391]
[1767875626978,0.3029028,134.01,133.97,0.70212391]
[1767875627174,5.38308354,134.0,133.97,0.70212391]
[1767875627376,0.3029028,134.01,133.97,0.70212391]
[1767875627607,5.38611789,134.0,133.97,0.70212391]
[1767875627785,7.76533505,134.01,133.97,0.70212391]
[1767875627986,5.38612022,134.0,133.97,4.26165349]
[1767875628185,7.76533505,134.01,133.97,4.26165349]
[1767875628386,5.38698727,134.0,133.97,4.26165349]
[1767875628587,7.76533505,134.01,133.97,2.98637848]
[1767875628795,5.3869811,134.0,133.97,2.98637848]
[1767875629003,7.76533505,134.01,133.98,0.70212391]
[1767875629310,5.38699152,134.0,133.98,0.70212391]
[1767875629604,7.76533505,134.01,133.98,0.70212391]
[1767875629797,9.88802561,134.02,133.98,0.70212391]
[1767875629995,5.38830182,134.01,133.98,0.70212391]
[1767875630196,7.60377104,134.02,133.98,0.70212391]
[1767875630394,5.39021791,134.01,133.98,0.70212391]
[1767875630593,7.60377104,134.02,133.98,0.70212391]
[1767875630797,5.39021791,134.01,133.98,0.70212391]
[1767875631005,7.70277104,134.02,133.98,0.70212391]
[1767875631193,5.39021872,134.01,133.99,0.70212391]
[1767875631506,7.70277104,134.02,133.99,0.70212391]
[1767875631708,5.39160837,134.01,133.99,0.70212391]
[1767875631912,5.39160837,134.01,133.98,0.70212391]
[1767875631913,0.58722594,134.01,133.98,0.70212391]
[1767875632100,0.58928557,134.01,133.97,0.70212391]
[1767875632292,14.22928557,134.01,133.97,0.70212391]
[1767875633107,0.58928557,134.01,133.97,0.70212391]
[1767875633298,14.22928557,134.01,133.97,0.70212391]
[1767875633796,21.69183894,134.01,133.97,0.70212391]
[1767875634193,0.099,134.0,133.97,0.70212391]
[1767875635216,13.739,134.0,133.96,0.70212391]
[1767875636222,0.099,134.0,133.97,0.70212391]
[1767875637918,0.099,134.0,133.95,0.70212391]
[1767875638212,2.3852936,133.98,133.95,0.70212391]
[1767875638423,0.10303748,133.96,133.94,0.1]
[1767875638596,0.58322884,133.95,133.94,1e-08]
[1767875638932,5.97743157,133.95,133.94,1e-08]
[1767875639099,13.44290376,133.95,133.94,1e-08]
[1767875639312,0.38332314,133.94,133.9,18.04459198]
[1767875640721,2.66757771,133.94,133.9,18.04459198]
[1767875640917,0.38332314,133.94,133.9,18.04459198]
[1767875641312,8.05571152,133.94,133.9,18.04459198]
[1767875641825,18.66314522,133.96,133.92,0.70212391]
[1767875641826,10.05417413,133.96,133.92,0.70212391]
[1767875642017,24.82922636,133.98,133.92,0.70212391]
[1767875642018,23.69390286,133.97,133.93,0.70212391]
[1767875642333,0.14216157,133.96,133.93,0.70212391]
[1767875642726,13.94496243,133.97,133.93,0.70212391]
[1767875642937,13.64,133.97,133.94,0.71210476]
[1767875643222,7.74957367,133.96,133.93,0.71210476]
[1767875643541,50.16060529,134.01,133.94,0.71210476]
[1767875643542,7.56186252,134.0,133.94,0.71210476]
[1767875643833,26.11957893,134.0,133.94,0.71210476]
[1767875644038,7.56186252,134.0,133.95,0.68594514]
[1767875644220,9.84611709,134.0,133.96,0.68594514]
[1767875646036,7.46286252,134.0,133.96,0.68594514]
[1767875646244,5.38445451,133.99,133.96,0.68594514]
[1767875646539,7.46286252,134.0,133.96,0.68594514]
[1767875646734,7.56186252,134.0,133.96,0.68594514]
[1767875647038,5.38445966,133.99,133.96,0.68594514]
[1767875647340,9.84611709,134.0,133.96,0.68594514]
[1767875647530,5.38482476,133.99,133.96,0.68594514]
[1767875647724,9.84611709,134.0,133.96,0.68594514]
[1767875647909,5.38482989,133.99,133.96,0.68594514]
[1767875648110,9.84611709,134.0,133.96,0.68594514]
[1767875648315,5.38562056,133.99,133.96,0.68594514]
[1767875648528,9.84611709,134.0,133.96,0.68594514]
[1767875648728,5.38568544,133.99,133.96,0.68594514]
[1767875649043,9.84611709,134.0,133.96,0.68594514]
[1767875649244,5.38568264,133.99,133.96,0.68594514]
[1767875649439,9.84611709,134.0,133.96,0.68594514]
[1767875649621,5.38667406,133.99,133.96,0.68594514]
[1767875649921,9.84611709,134.0,133.96,0.68594514]
[1767875650121,5.38667638,133.99,133.96,0.68594514]
[1767875650321,9.84611709,134.0,133.96,0.68594514]
[1767875650536,7.6716236,133.99,133.96,0.68594514]
[1767875650840,9.74760588,133.99,133.96,0.68594514]
[1767875651345,0.10303748,133.96,133.91,0.68594514]
[1767875651522,2.28425457,133.96,133.91,0.68594514]
[1767875651718,2.28425457,133.96,133.92,0.68594514]
[1767875653038,9.7495082,133.96,133.92,0.68594514]
[1767875653428,7.46525363,133.96,133.92,0.68594514]
[1767875653645,9.7495082,133.96,133.92,0.68594514]
[1767875654844,2.87354014,133.95,133.91,0.68594514]
[1767875655030,7.77010508,133.96,133.91,0.68594514]
[1767875655340,2.38325457,133.95,133.91,0.68594514]
[1767875657043,7.46602956,133.94,133.91,0.68594514]
[1767875658247,0.38332314,133.95,133.91,0.68594514]
[1767875658545,2.56857771,133.95,133.91,0.68594514]
[1767875658726,2.66757771,133.95,133.91,0.68594514]
[1767875658923,2.58715737,133.94,133.91,0.68594514]
[1767875659223,0.3029028,133.93,133.9,17.34246807]
[1767875659422,1.721,133.86,133.83,32.4197017]
[1767875659729,0.38477655,133.91,133.85,2.28425457]
[1767875660047,0.38477655,133.91,133.87,2.28425457]
[1767875661020,0.38477655,133.91,133.87,7.46959023]
[1767875661226,0.38477655,133.91,133.87,9.7538448]
[1767875661434,0.70224438,133.92,133.87,8.15553537]
[1767875661647,0.70224438,133.92,133.88,0.68594514]
[1767875662141,0.70224438,133.92,133.87,10.43978994]
[1767875662344,0.38477655,133.91,133.87,2.97019971]
[1767875662535,0.38477655,133.91,133.87,10.44012105]
[1767875663132,0.38477655,133.91,133.87,8.15586648]
[1767875663333,0.38477655,133.91,133.87,10.44012105]
[1767875663850,7.75170451,133.92,133.88,0.68594514]
[1767875664350,8.45077421,133.92,133.88,0.68594514]
[1767875665459,0.38791949,133.91,133.88,0.68594514]
[1767875666038,0.69595819,133.9,133.86,0.68594514]
[1767875666949,0.69595819,133.9,133.86,8.15642877]
[1767875667149,0.38477655,133.91,133.87,8.15580671]
[1767875667343,0.38477655,133.91,133.87,0.68594514]
[1767875668142,2.66903112,133.91,133.87,8.15573515]
[1767875668955,0.6990697,133.9,133.86,7.47024234]
[1767875669149,0.38791949,133.89,133.85,0.68594514]
[1767875669554,2.67217406,133.89,133.85,0.68594514]
[1767875670357,0.39099988,133.87,133.83,0.78594514]
[1767875670541,0.70224438,133.89,133.84,8.15711401]
[1767875670862,2.98649895,133.89,133.85,0.68594514]
[1767875671038,0.70224438,133.89,133.85,0.68594514]
[1767875671238,0.6990697,133.87,133.84,7.47116887]
[1767875671536,0.39099988,133.84,133.8,0.78594514]
[1767875671742,2.28425457,133.83,133.8,0.78594514]
[1767875672051,16.31525445,133.84,133.8,0.78594514]
[1767875672252,14.03099988,133.84,133.8,8.25978457]
[1767875672447,0.39099988,133.84,133.81,0.70995261]
[1767875672630,13.64,133.85,133.81,0.70995261]
[1767875672832,14.04627695,133.85,133.81,0.70995261]
[1767875673036,13.64,133.86,133.83,0.70995261]
[1767875673842,0.40627695,133.87,133.83,0.70995261]
[1767875674362,8.14945969,133.89,133.84,2.99420718]
[1767875674658,0.40627695,133.88,133.85,0.70995261]
[1767875675035,13.64,133.89,133.85,0.70995261]
[1767875675442,21.51541397,133.89,133.85,0.70995261]
[1767875675678,2.28425457,133.88,133.85,0.70995261]
[1767875676238,21.51541397,133.89,133.85,0.70995261]
[1767875676654,23.79966854,133.89,133.85,0.70995261]
[1767875678067,2.28425457,133.88,133.85,0.70995261]
[1767875678753,0.67509639,133.86,133.82,0.70995261]
[1767875678954,7.46943781,133.88,133.84,0.70995261]
[1767875679263,9.75369238,133.88,133.84,0.70995261]
[1767875679857,13.64,133.89,133.85,0.70995261]
[1767875680162,15.92425457,133.89,133.85,0.70995261]
[1767875680658,0.67778431,133.88,133.84,2.28425457]
[1767875680864,2.96203888,133.88,133.83,10.46626149]
[1767875681462,21.78937893,133.89,133.85,0.70995261]
[1767875681759,16.60478138,133.89,133.85,0.70995261]
[1767875681964,14.32052681,133.89,133.85,0.70995261]
[1767875682266,16.60478138,133.89,133.85,0.70995261]
[1767875682468,21.78942271,133.89,133.85,0.70995261]
[1767875682761,24.07367728,133.89,133.85,0.70995261]
[1767875683465,21.78942271,133.89,133.85,0.70995261]
[1767875683759,16.60478138,133.89,133.85,0.70995261]
[1767875683966,14.32052681,133.89,133.85,2.99420718]
[1767875684260,14.32052681,133.89,133.86,0.70995261]
[1767875684466,0.96484995,133.91,133.87,0.70995261]
[1767875684764,24.07221076,133.92,133.88,0.70995261]
[1767875684961,24.07164093,133.93,133.89,0.70995261]
[1767875685166,0.40627695,133.92,133.89,0.70995261]
[1767875686049,7.87348625,133.92,133.89,0.70995261]
[1767875686758,7.87348625,133.92,133.87,8.17977734]
[1767875686951,0.96210745,133.91,133.86,0.70995261]
[1767875687152,2.28425457,133.9,133.86,0.70995261]
[1767875687355,16.88636202,133.91,133.87,0.70995261]
[1767875687662,2.69324659,133.9,133.87,0.70995261]
[1767875687860,2.69324659,133.9,133.85,0.70995261]
[1767875688168,2.69324659,133.9,133.86,0.70995261]
[1767875688556,7.87742018,133.9,133.86,0.70995261]
[1767875688866,25.64853425,133.91,133.87,0.70995261]
[1767875689160,22.07277545,133.91,133.87,0.70995261]
[1767875689353,21.1079255,133.91,133.87,0.70995261]
[1767875689748,13.64,133.91,133.88,0.70995261]
[1767875690264,11.04295068,133.92,133.88,0.70995261]
[1767875690853,3.5757588,133.91,133.88,0.70995261]
[1767875691168,11.44922763,133.92,133.88,0.70995261]
[1767875692266,7.46719188,133.92,133.88,0.70995261]
[1767875692774,21.10674725,133.93,133.89,0.70995261]
[1767875693276,21.10674725,133.93,133.9,0.70995261]
[1767875694476,5.41860757,133.92,133.9,0.70995261]
[1767875694677,21.10674725,133.93,133.9,0.70995261]
[1767875694879,5.41956955,133.92,133.9,0.70995261]
[1767875695051,21.10674725,133.93,133.9,0.70995261]
[1767875696879,7.46674725,133.93,133.9,0.70995261]
[1767875699374,5.38617692,133.92,133.9,0.70995261]
[1767875699577,11.04250605,133.93,133.9,0.70995261]
[1767875700379,0.40899202,133.91,133.87,0.70995261]
[1767875700570,4.25628561,133.92,133.87,0.70995261]
[1767875700778,5.38706922,133.91,133.88,0.70995261]
[1767875700979,0.68052681,133.92,133.88,0.70995261]
[1767875701178,5.38761003,133.91,133.88,4.28571141]
[1767875701485,22.24222635,133.93,133.88,4.28571141]
[1767875701486,7.46686514,133.93,133.9,0.70995261]
[1767875701785,5.38876814,133.92,133.9,0.70995261]
[1767875701984,7.46686514,133.93,133.9,0.70995261]
[1767875702178,5.38824797,133.92,133.9,0.70995261]
[1767875702479,8.14464945,133.93,133.9,0.70995261]
[1767875702786,5.38864482,133.92,133.9,0.70995261]
[1767875702995,11.72040825,133.93,133.89,0.72130051]
[1767875703282,5.38431046,133.92,133.89,0.72130051]
[1767875703487,8.14464945,133.93,133.89,0.72130051]
[1767875703789,5.38519328,133.92,133.89,0.72130051]
[1767875703962,11.72040825,133.93,133.89,0.72130051]
[1767875704167,5.38585732,133.92,133.89,0.72130051]
[1767875704360,11.72040825,133.93,133.89,0.72130051]
[1767875704562,5.38640123,133.92,133.89,0.72130051]
[1767875704757,11.72040825,133.93,133.89,0.72130051]
[1767875704984,5.38595847,133.92,133.89,0.72130051]
[1767875705285,8.14464945,133.93,133.89,0.67154818]
[1767875705286,0.67334261,133.93,133.89,0.67154818]
[1767875705483,0.67334261,133.93,133.9,3.5757588]
[1767875706882,7.46616433,133.94,133.9,4.24730698]
[1767875707189,7.87692784,133.94,133.9,4.24730698]
[1767875708287,7.87692784,133.94,133.91,0.67154818]
[1767875709967,11.45268664,133.94,133.91,0.61154818]
[1767875710180,11.45268664,133.94,133.89,3.5757588]
[1767875711468,7.87692784,133.94,133.89,3.5757588]
[1767875711670,11.45268664,133.94,133.89,3.5757588]
[1767875711876,11.45268664,133.94,133.87,18.67409517]
[1767875712076,11.45268664,133.94,133.9,0.67154818]
[1767875713488,0.67393661,133.91,133.86,0.67154818]
[1767875713791,0.67393661,133.91,133.87,4.24730698]
[1767875713994,4.25175373,133.92,133.88,0.67154818]
[1767875714492,0.47016351,133.91,133.88,0.67154818]
[1767875715094,7.93838336,133.91,133.88,0.67154818]
[1767875715674,7.93838336,133.91,133.87,4.24730698]
[1767875716494,7.93838336,133.91,133.87,0.67154818]
[1767875716794,7.93838336,133.91,133.87,4.24730698]
[1767875717295,5.38111994,133.9,133.87,0.67154818]
[1767875717479,7.93838336,133.91,133.87,0.67154818]
[1767875717678,6.05695597,133.9,133.87,0.67154818]
[1767875717880,3.5757588,133.9,133.86,0.67154818]
[1767875718081,4.04592231,133.9,133.86,0.67154818]
[1767875718800,0.47220125,133.88,133.8,0.77154818]
[1767875718971,5.38405398,133.89,133.8,0.1]
[1767875718972,3.5757588,133.83,133.8,0.1]
[1767875719167,7.47272455,133.82,133.8,1e-08]
[1767875719469,5.38093689,133.81,133.72,7.47806134]
[1767875719669,5.38093689,133.81,133.71,3.88024214]
[1767875719670,6.6801107,133.77,133.71,3.88024214]
[1767875719872,6.6801107,133.77,133.7,0.67154818]
[1767875719873,13.64,133.76,133.7,0.67154818]
[1767875720073,3.5757588,133.75,133.7,0.67154818]
[1767875720394,6.6801107,133.77,133.7,0.67154818]
[1767875720693,5.49554574,133.76,133.7,0.67154818]
[1767875720893,19.13554574,133.75,133.71,0.67154818]
[1767875721200,0.28432314,133.75,133.71,0.67154818]
[1767875721386,7.47607655,133.76,133.69,0.1]
[1767875721587,13.64,133.79,133.69,0.1]
[1767875721801,12.96006442,133.78,133.69,0.1]
[1767875722105,7.47495888,133.78,133.69,0.1]
[1767875722701,5.48062443,133.77,133.69,0.38432314]
[1767875722883,24.69071768,133.78,133.69,0.38432314]
[1767875723092,21.11495888,133.78,133.69,0.38432314]
[1767875723311,11.72671261,133.78,133.69,0.38432314]
[1767875723511,0.67599493,133.77,133.73,0.67154818]
[1767875723880,0.67599493,133.77,133.72,3.5757588]
[1767875724195,0.67599493,133.77,133.69,7.5799813]
[1767875724404,0.67599493,133.77,133.72,3.5757588]
[1767875724784,0.67599493,133.77,133.69,7.5799813]
[1767875724992,0.67599493,133.77,133.7,3.5757588]
[1767875724993,0.67599493,133.74,133.7,3.5757588]
[1767875725186,0.28432314,133.77,133.72,3.5757588]
[1767875725187,0.67599493,133.77,133.72,3.5757588]
[1767875725385,14.31599493,133.77,133.69,7.5799548]
[1767875725585,21.79184526,133.77,133.72,3.5757588]
[1767875725788,0.67599493,133.77,133.73,3.5757588]
[1767875726006,0.67599493,133.81,133.76,3.79743173]
[1767875726194,6.13902183,133.8,133.76,3.79743173]
[1767875726396,5.4630269,133.79,133.76,3.5757588]
[1767875726591,5.4630269,133.78,133.72,0.28432314]
[1767875726789,5.4630269,133.77,133.75,3.5757588]
[1767875726986,5.4630269,133.76,133.75,3.5757588]
[1767875727187,0.67599493,133.8,133.75,3.5757588]
[1767875727506,8.14871948,133.82,133.78,3.5757588]
[1767875727694,0.67599493,133.81,133.74,7.47716342]
[1767875727891,0.67599493,133.81,133.77,3.5757588]
[1767875728095,0.67599493,133.8,133.76,3.5757588]
[1767875729300,8.15020692,133.8,133.76,3.5757588]
[1767875729506,8.15020692,133.8,133.77,3.5757588]
[1767875729706,22.25757018,133.82,133.78,3.5757588]
[1767875729707,7.47342175,133.81,133.78,3.5757588]
[1767875729891,8.14941668,133.81,133.77,3.5757588]
[1767875730207,0.67599493,133.82,133.75,7.47657263]
[1767875730394,0.67599493,133.82,133.78,3.5757588]
[1767875730587,7.47255794,133.83,133.79,3.5757588]
[1767875730797,8.14855287,133.83,133.79,3.5757588]
[1767875731506,8.14775728,133.84,133.81,3.5757588]
[1767875731830,8.14775728,133.84,133.81,3.5157588]
[1767875731831,7.47176235,133.84,133.81,3.5157588]
[1767875732120,7.47176235,133.84,133.8,3.5757588]
[1767875732290,8.15175626,133.84,133.77,7.47543151]
[1767875732497,8.15175626,133.84,133.8,3.5757588]
[1767875733186,8.15175626,133.84,133.77,7.47543151]
[1767875733386,4.25575271,133.82,133.74,75.82432314]
[1767875733587,0.67999391,133.82,133.78,3.5757588]
[1767875734616,0.67999391,133.8,133.74,21.40116734]
[1767875734922,0.67999391,133.8,133.77,3.5757588]
[1767875735230,13.64,133.82,133.78,3.5757588]
[1767875735231,14.31999391,133.82,133.78,3.5757588]
[1767875735432,21.79312566,133.82,133.78,3.5757588]
[1767875735899,8.15312566,133.82,133.76,7.47598105]
[1767875736099,8.15312566,133.82,133.75,7.47640881]
[1767875736299,0.67999391,133.81,133.74,21.11701773]
[1767875736508,0.67999391,133.81,133.76,3.5757588]
[1767875737513,7.47384155,133.8,133.76,3.5757588]
[1767875738410,8.15349284,133.81,133.76,3.5757588]
[1767875738619,8.15293752,133.82,133.77,3.5757588]
[1767875738818,8.15293752,133.82,133.75,7.47657151]
[1767875739010,8.15293752,133.82,133.76,3.5757588]
[1767875739011,11.72869632,133.82,133.76,3.5757588]
[1767875739217,11.72869632,133.82,133.75,7.47657151]
[1767875739424,11.72869632,133.82,133.76,3.5757588]
[1767875739726,11.72869632,133.82,133.77,3.5757588]
[1767875740421,0.67999391,133.81,133.77,3.5757588]
[1767875740625,8.15293752,133.82,133.76,7.47592313]
[1767875740817,8.15293752,133.82,133.77,3.5757588]
[1767875742125,0.67999391,133.83,133.76,7.76015325]
[1767875742329,0.67999391,133.83,133.78,3.5757588]
[1767875742506,0.67999391,133.83,133.79,3.5757588]
[1767875742706,0.67999391,133.83,133.77,7.47537583]
[1767875743115,0.67999391,133.83,133.79,3.5757588]
[1767875743327,8.15251242,133.83,133.78,3.5757588]
[1767875743831,8.15202472,133.84,133.8,3.5757588]
[1767875744822,8.15202472,133.84,133.77,7.75984081]
[1767875745020,8.15202472,133.84,133.8,3.5757588]
[1767875745513,0.67999391,133.84,133.8,3.5757588]
[1767875745927,8.15168098,133.84,133.8,3.5757588]
[1767875746618,8.48110454,133.85,133.81,3.5757588]
[1767875747429,1.01,133.85,133.82,3.5757588]
[1767875747637,1.01,133.85,133.83,3.5757588]
[1767875748048,8.14958428,133.88,133.84,3.5757588]
[1767875748828,0.67999391,133.87,133.83,3.5757588]
[1767875749230,8.15037292,133.87,133.82,7.47232031]
[1767875749433,8.15037292,133.87,133.84,3.5757588]
[1767875749934,8.15037292,133.87,133.82,7.47232031]
[1767875750237,0.67999391,133.87,133.83,7.47209522]
[1767875750410,0.67999391,133.87,133.84,3.5757588]
[1767875750612,0.67999391,133.87,133.81,0.28432314]
[1767875750613,8.14998323,133.87,133.81,0.28432314]
[1767875750813,8.14998323,133.87,133.83,2.28852791]
[1767875751545,0.67999391,133.87,133.83,2.28852791]
[1767875751850,7.46960755,133.88,133.84,2.28852791]
[1767875752135,8.14960146,133.88,133.84,2.28852791]
[1767875752439,0.67999391,133.88,133.83,7.47209733]
[1767875752638,0.67999391,133.88,133.85,2.28852791]
[1767875752841,8.14908137,133.89,133.85,2.28852791]
[1767875755027,0.67999391,133.88,133.85,2.28852791]
[1767875755636,0.67999391,133.88,133.8,61.9]
[1767875755823,0.67999391,133.87,133.79,18.68513235]
[1767875756027,0.67999391,133.86,133.81,9.76162606]
[1767875756242,0.67999391,133.86,133.82,2.28852791]
[1767875756623,14.31999391,133.88,133.82,9.76100807]
[1767875756821,14.31999391,133.88,133.83,2.28852791]
[1767875757023,8.14992742,133.87,133.83,2.28852791]
[1767875757923,0.67999391,133.86,133.83,2.28852791]
[1767875759036,8.14992742,133.87,133.83,2.28852791]
[1767875759241,0.67999391,133.86,133.83,2.28852791]
[1767875759436,0.67999391,133.86,133.78,18.68644612]
[1767875759437,0.67999391,133.85,133.78,18.68644612]
[1767875759760,0.67999391,133.85,133.81,2.28852791]
[1767875759962,8.15051711,133.86,133.81,2.28852791]
[1767875760641,26.826746,133.86,133.81,2.28852791]
[1767875761129,0.67999391,133.85,133.81,2.28852791]
[1767875761324,0.67999391,133.84,133.76,13.64]
[1767875761525,0.67999391,133.83,133.78,2.28852791]
[1767875761740,0.67999391,133.85,133.8,2.28852791]
[1767875761954,0.67999391,133.85,133.81,2.28852791]
[1767875762261,7.4705232,133.86,133.83,2.28852791]
[1767875762427,7.4705232,133.86,133.81,7.47323679]
[1767875762629,2.97219002,133.85,133.77,18.68849247]
[1767875762951,2.97219002,133.84,133.78,9.76318864]
[1767875763128,0.68366211,133.83,133.78,9.76318864]
[1767875763462,0.67760281,133.85,133.79,9.76290052]
[1767875763642,0.67760281,133.84,133.8,2.28852791]
[1767875763844,2.96613072,133.85,133.79,7.47410231]
[1767875764026,2.96613072,133.85,133.78,7.47472191]
[1767875764226,2.96613072,133.85,133.79,2.28852791]
[1767875764427,0.67760281,133.84,133.79,9.76288991]
[1767875764853,8.14964056,133.84,133.79,9.76288991]
[1767875765047,8.14964056,133.84,133.78,7.47474865]
[1767875765251,0.67760281,133.81,133.76,7.47595254]
[1767875765564,0.67760281,133.83,133.76,9.76448045]
[1767875765749,2.96613072,133.82,133.76,2.28852791]
[1767875765941,2.28852791,133.81,133.75,9.76489611]
[1767875766251,2.96613072,133.81,133.75,9.76489611]
[1767875766457,26.15105747,133.84,133.72,6.6801107]
[1767875766458,0.67760281,133.79,133.72,6.6801107]
[1767875766630,0.67760281,133.76,133.7,7.47889818]
[1767875766833,10.44243499,133.76,133.7,2.28852791]
[1767875767142,8.15390708,133.76,133.71,2.28852791]
[1767875770173,10.44231092,133.76,133.7,2.28852791]
[1767875770344,8.15378301,133.76,133.69,21.21978604]
[1767875770548,10.44231092,133.76,133.69,21.21978604]
[1767875771068,10.44231092,133.76,133.7,9.76763225]
[1767875771265,0.67760281,133.76,133.72,2.28852791]
[1767875771448,10.44234183,133.76,133.71,2.28852791]
[1767875771650,10.44234183,133.76,133.7,9.76763225]
[1767875772154,2.96613072,133.75,133.69,21.21958565]
[1767875772358,2.96613072,133.75,133.69,23.50811356]
[1767875772560,2.96613072,133.75,133.69,7.57958565]
[1767875772764,2.96613072,133.75,133.69,9.86811356]
[1767875773253,10.44309253,133.75,133.69,9.86811356]
[1767875773473,2.96613072,133.74,133.69,2.38852791]
[1767875773965,2.96613072,133.74,133.69,9.86850803]
[1767875774173,0.67760281,133.74,133.69,7.57998012]
[1767875774380,0.67760281,133.74,133.69,9.86850803]
[1767875774553,0.67760281,133.74,133.69,7.57998012]
[1767875774752,0.67760281,133.74,133.69,9.86850803]